[Event "*** Titled Tuesday 3|2 Blitz"]
[Site "Chess.com"]
[Date "2015.10.06"]
[Round "4"]
[White "Po6Don"]
[Black "Carolina-moon"]
[Result "1/2-1/2"]
[WhiteElo "2006"]
[BlackElo "2039"]
[TimeControl "180+2"]
[EndTime "11:53:17 PDT"]
[Termination "Game drawn - insufficient material"]

1. e4 {[%clk 0:03:01.9]} 1... c5 {[%clk 0:03:00.5]} 2. c3 {[%clk 0:03:02.6]}
2... d6 {[%clk 0:03:01.4]} 3. d4 {[%clk 0:03:03.8]} 3... Nf6 {[%clk 0:03:02.3]}
4. Bd3 {[%clk 0:03:04.2]} 4... g6 {[%clk 0:03:01.2]} 5. h3 {[%clk 0:03:04.9]}
5... Bg7 {[%clk 0:03:01.9]} 6. Nf3 {[%clk 0:03:06.3]} 6... O-O {[%clk
0:02:53.3]} 7. O-O {[%clk 0:03:07.3]} 7... Nbd7 {[%clk 0:02:52.4]} 8. e5 {[%clk
0:03:03.6]} 8... Ne8 {[%clk 0:02:46.7]} 9. Qe2 {[%clk 0:02:48.2]} 9... cxd4
{[%clk 0:01:55]} 10. cxd4 {[%clk 0:02:47.6]} 10... dxe5 {[%clk 0:01:53.2]} 11.
dxe5 {[%clk 0:02:47.5]} 11... Nc7 {[%clk 0:01:51]} 12. Nc3 {[%clk 0:02:43.9]}
12... Nc5 {[%clk 0:01:48.9]} 13. Bc2 {[%clk 0:02:42]} 13... b6 {[%clk
0:01:47.8]} 14. Rd1 {[%clk 0:02:40.2]} 14... Qe8 {[%clk 0:01:43]} 15. b4 {[%clk
0:02:31.9]} 15... Ba6 {[%clk 0:01:35]} 16. Qe3 {[%clk 0:02:25.4]} 16... N5e6
{[%clk 0:01:31]} 17. a4 {[%clk 0:02:23]} 17... Bb7 {[%clk 0:01:24.2]} 18. Be4
{[%clk 0:02:12.1]} 18... Bxe4 {[%clk 0:01:18.9]} 19. Qxe4 {[%clk 0:02:14]} 19...
Rd8 {[%clk 0:01:18.5]} 20. Be3 {[%clk 0:02:13.7]} 20... Rxd1+ {[%clk 0:01:15.3]}
21. Rxd1 {[%clk 0:02:12]} 21... Qb8 {[%clk 0:01:16.5]} 22. Qh4 {[%clk
0:02:07.8]} 22... Re8 {[%clk 0:01:00]} 23. Rd7 {[%clk 0:01:59.1]} 23... f6
{[%clk 0:00:29.2]} 24. Bh6 {[%clk 0:01:51.8]} 24... Qc8 {[%clk 0:00:27.4]} 25.
Rd2 {[%clk 0:01:35]} 25... g5 {[%clk 0:00:28.5]} 26. Qh5 {[%clk 0:01:30.8]}
26... Nf4 {[%clk 0:00:28.7]} 27. Qg4 {[%clk 0:01:11.5]} 27... Bxh6 {[%clk
0:00:29.6]} 28. exf6 {[%clk 0:00:46.9]} 28... exf6 {[%clk 0:00:25.5]} 29. Ne4
{[%clk 0:00:48]} 29... Qxg4 {[%clk 0:00:20.3]} 30. Nxf6+ {[%clk 0:00:49]} 30...
Kf7 {[%clk 0:00:20.7]} 31. Nxg4 {[%clk 0:00:50.2]} 31... Bg7 {[%clk 0:00:21.1]}
32. Rd7+ {[%clk 0:00:38.6]} 32... Re7 {[%clk 0:00:21.7]} 33. Nxg5+ {[%clk
0:00:40]} 33... Ke8 {[%clk 0:00:22.4]} 34. Rxe7+ {[%clk 0:00:34.7]} 34... Kxe7
{[%clk 0:00:23.2]} 35. Nxh7 {[%clk 0:00:36.6]} 35... Nfd5 {[%clk 0:00:20.2]} 36.
a5 {[%clk 0:00:34.8]} 36... bxa5 {[%clk 0:00:20.1]} 37. bxa5 {[%clk 0:00:36.7]}
37... a6 {[%clk 0:00:20.8]} 38. Ng5 {[%clk 0:00:35]} 38... Nb4 {[%clk
0:00:19.6]} 39. h4 {[%clk 0:00:26.3]} 39... Nc6 {[%clk 0:00:20.5]} 40. h5 {[%clk
0:00:27.1]} 40... Ne6 {[%clk 0:00:21.6]} 41. Ne4 {[%clk 0:00:21]} 41... Nxa5
{[%clk 0:00:19.7]} 42. g3 {[%clk 0:00:22.5]} 42... Nc4 {[%clk 0:00:17.9]} 43. h6
{[%clk 0:00:23.1]} 43... Bh8 {[%clk 0:00:18.5]} 44. f4 {[%clk 0:00:25]} 44... a5
{[%clk 0:00:18.7]} 45. f5 {[%clk 0:00:25.7]} 45... Nd4 {[%clk 0:00:18.8]} 46.
f6+ {[%clk 0:00:23.1]} 46... Kf7 {[%clk 0:00:15.7]} 47. Ng5+ {[%clk 0:00:18.8]}
47... Kg6 {[%clk 0:00:14.8]} 48. f7 {[%clk 0:00:20.3]} 48... Ne6 {[%clk
0:00:15.2]} 49. Nxe6 {[%clk 0:00:18]} 49... Kxf7 {[%clk 0:00:15]} 50. Nc7 {[%clk
0:00:09.9]} 50... Nd6 {[%clk 0:00:11.3]} 51. Kf1 {[%clk 0:00:06]} 51... a4
{[%clk 0:00:12.2]} 52. Ne3 {[%clk 0:00:05.4]} 52... a3 {[%clk 0:00:13]} 53. Nc2
{[%clk 0:00:06.7]} 53... a2 {[%clk 0:00:12.5]} 54. Nd5 {[%clk 0:00:08]} 54...
Nb5 {[%clk 0:00:11.6]} 55. Ndb4 {[%clk 0:00:08.5]} 55... Na3 {[%clk 0:00:11.5]}
56. Nxa2 {[%clk 0:00:05.6]} 56... Nxc2 {[%clk 0:00:12.8]} 57. Kg2 {[%clk
0:00:07.3]} 57... Nd4 {[%clk 0:00:13.9]} 58. Nc1 {[%clk 0:00:07.9]} 58... Kg6
{[%clk 0:00:15.1]} 59. Nd3 {[%clk 0:00:09.1]} 59... Kxh6 {[%clk 0:00:16.1]} 60.
Nf4 {[%clk 0:00:09.8]} 60... Kg5 {[%clk 0:00:16.2]} 61. Nh3+ {[%clk 0:00:11]}
61... Kf5 {[%clk 0:00:16.5]} 62. Nf2 {[%clk 0:00:11.9]} 62... Be5 {[%clk
0:00:16.3]} 63. Nd3 {[%clk 0:00:12.4]} 63... Bd6 {[%clk 0:00:15.3]} 64. Nf2
{[%clk 0:00:11.6]} 64... Ne6 {[%clk 0:00:15.3]} 65. Kf3 {[%clk 0:00:12]} 65...
Ng5+ {[%clk 0:00:14.8]} 66. Kg2 {[%clk 0:00:12.1]} 66... Ne6 {[%clk 0:00:12.7]}
67. Kf3 {[%clk 0:00:13.1]} 67... Nd4+ {[%clk 0:00:12.9]} 68. Kg2 {[%clk
0:00:13.6]} 68... Bxg3 {[%clk 0:00:12]} 69. Kxg3 {[%clk 0:00:13.8]} 69... Ne6
{[%clk 0:00:10.6]} 70. Kf3 {[%clk 0:00:14.5]} 70... Ng5+ {[%clk 0:00:11.4]} 71.
Kg2 {[%clk 0:00:14.9]} 71... Ne4 {[%clk 0:00:12.4]} 72. Nxe4 {[%clk 0:00:14.2]}
1/2-1/2

[Event "*** Titled Tuesday 3|2 Blitz"]
[Site "Chess.com"]
[Date "2015.10.06"]
[Round "5"]
[White "Er_is_geen_hoop_meer"]
[Black "Arashy_CC"]
[Result "1-0"]
[WhiteElo "2359"]
[BlackElo "2360"]
[TimeControl "180+2"]
[EndTime "11:58:02 PDT"]
[Termination "Er_is_geen_hoop_meer won by resignation"]

1. g3 {[%clk 0:03:01.9]} 1... g6 {[%clk 0:03:00.9]} 2. Bg2 {[%clk 0:03:02.6]}
2... Bg7 {[%clk 0:03:02.8]} 3. Nf3 {[%clk 0:03:03.8]} 3... e5 {[%clk 0:03:02]}
4. d3 {[%clk 0:03:03.8]} 4... d6 {[%clk 0:03:03]} 5. O-O {[%clk 0:03:03.3]} 5...
h5 {[%clk 0:03:02.3]} 6. c4 {[%clk 0:03:03.5]} 6... Nc6 {[%clk 0:03:03.6]} 7.
Nc3 {[%clk 0:03:04.6]} 7... h4 {[%clk 0:03:04.4]} 8. Nxh4 {[%clk 0:03:05.4]}
8... Nd4 {[%clk 0:02:58.5]} 9. e3 {[%clk 0:03:04.5]} 9... Rxh4 {[%clk
0:02:59.3]} 10. gxh4 {[%clk 0:03:05.3]} 10... Nf5 {[%clk 0:03:00.8]} 11. h5
{[%clk 0:03:04.5]} 11... Nh4 {[%clk 0:02:55.6]} 12. Kh1 {[%clk 0:03:00.3]} 12...
Nf6 {[%clk 0:02:33.6]} 13. hxg6 {[%clk 0:02:55.3]} 13... fxg6 {[%clk 0:02:34.2]}
14. Rg1 {[%clk 0:02:37.9]} 14... Ng4 {[%clk 0:02:32.9]} 15. Qe2 {[%clk
0:02:38.5]} 15... Kf8 {[%clk 0:01:55.7]} 16. f3 {[%clk 0:02:38.3]} 16... Nh6
{[%clk 0:01:54.5]} 17. Bd2 {[%clk 0:02:36.7]} 17... N6f5 {[%clk 0:01:47.9]} 18.
Be1 {[%clk 0:02:30.6]} 18... Bh6 {[%clk 0:01:49.2]} 19. Bf2 {[%clk 0:02:23.9]}
19... Qg5 {[%clk 0:01:46.9]} 20. Ne4 {[%clk 0:02:23.4]} 20... Qh5 {[%clk
0:01:36.8]} 21. Nf6 {[%clk 0:02:24.2]} 21... Qg5 {[%clk 0:01:38.1]} 22. Nh7+
{[%clk 0:02:25.2]} 1-0

[Event "*** Titled Tuesday 3|2 Blitz"]
[Site "Chess.com"]
[Date "2015.10.06"]
[Round "5"]
[White "Saitama_Hero"]
[Black "MFBerna"]
[Result "1-0"]
[WhiteElo "2143"]
[BlackElo "2078"]
[TimeControl "180+2"]
[EndTime "11:58:46 PDT"]
[Termination "Saitama_Hero won by resignation"]

1. d4 {[%clk 0:03:01.9]} 1... d5 {[%clk 0:03:00.7]} 2. c4 {[%clk 0:03:03.3]}
2... e6 {[%clk 0:03:01.2]} 3. Nc3 {[%clk 0:03:04.7]} 3... Be7 {[%clk 0:03:02.2]}
4. Nf3 {[%clk 0:03:06.2]} 4... Nf6 {[%clk 0:03:02.9]} 5. Bg5 {[%clk 0:03:06.9]}
5... O-O {[%clk 0:03:03.9]} 6. e3 {[%clk 0:03:08.4]} 6... h6 {[%clk 0:03:03.9]}
7. Bxf6 {[%clk 0:03:09.3]} 7... Bxf6 {[%clk 0:03:05.8]} 8. Bd3 {[%clk 0:03:10]}
8... b6 {[%clk 0:03:05.1]} 9. cxd5 {[%clk 0:03:10.2]} 9... exd5 {[%clk 0:03:07]}
10. O-O {[%clk 0:03:11]} 10... Be6 {[%clk 0:03:08.4]} 11. Rc1 {[%clk 0:03:08.9]}
11... c5 {[%clk 0:03:06.4]} 12. Bb1 {[%clk 0:02:51.7]} 12... Nd7 {[%clk
0:03:06.5]} 13. dxc5 {[%clk 0:02:49.5]} 13... Nxc5 {[%clk 0:03:08.4]} 14. Nd4
{[%clk 0:02:50.2]} 14... Rc8 {[%clk 0:03:06.7]} 15. b4 {[%clk 0:02:42.9]} 15...
Nd7 {[%clk 0:02:56.7]} 16. Qd3 {[%clk 0:02:39.9]} 16... Re8 {[%clk 0:02:45.7]}
17. Qh7+ {[%clk 0:02:30.8]} 17... Kf8 {[%clk 0:02:46.6]} 18. Ncb5 {[%clk
0:02:12.5]} 18... Ne5 {[%clk 0:02:07.1]} 19. Nxa7 {[%clk 0:02:03.6]} 19... Rxc1
{[%clk 0:02:02]} 20. Rxc1 {[%clk 0:02:05.5]} 20... Bd7 {[%clk 0:01:58.7]} 21. f4
{[%clk 0:02:02.1]} 21... Nc4 {[%clk 0:01:54.3]} 22. Nac6 {[%clk 0:01:55.5]}
22... Bxc6 {[%clk 0:01:52.1]} 23. Nxc6 {[%clk 0:01:57.4]} 1-0

[Event "*** Titled Tuesday 3|2 Blitz"]
[Site "Chess.com"]
[Date "2015.10.06"]
[Round "5"]
[White "WilliamRDavis"]
[Black "oggy1984"]
[Result "0-1"]
[WhiteElo "1872"]
[BlackElo "2379"]
[TimeControl "180+2"]
[EndTime "11:59:22 PDT"]
[Termination "oggy1984 won by resignation"]

1. d4 {[%clk 0:03:01.9]} 1... Nf6 {[%clk 0:02:59.7]} 2. Nf3 {[%clk 0:03:03]}
2... c5 {[%clk 0:02:58.6]} 3. e3 {[%clk 0:03:03.2]} 3... g6 {[%clk 0:02:56.8]}
4. c4 {[%clk 0:03:01.8]} 4... Bg7 {[%clk 0:02:57.3]} 5. Nc3 {[%clk 0:03:02.8]}
5... O-O {[%clk 0:02:57.8]} 6. Be2 {[%clk 0:03:03.6]} 6... cxd4 {[%clk
0:02:55.1]} 7. exd4 {[%clk 0:03:03.9]} 7... d5 {[%clk 0:02:55.8]} 8. c5 {[%clk
0:03:04]} 8... Nc6 {[%clk 0:02:56.1]} 9. O-O {[%clk 0:03:04]} 9... Ne4 {[%clk
0:02:52.5]} 10. Bf4 {[%clk 0:03:01.3]} 10... Bf5 {[%clk 0:02:42]} 11. Re1 {[%clk
0:02:54.5]} 11... Rc8 {[%clk 0:02:32.1]} 12. h3 {[%clk 0:02:50.9]} 12... Qd7
{[%clk 0:02:08.8]} 13. Rc1 {[%clk 0:02:36.2]} 13... Rfd8 {[%clk 0:02:01.5]} 14.
a3 {[%clk 0:02:30.3]} 14... f6 {[%clk 0:01:45.8]} 15. b4 {[%clk 0:02:26.4]}
15... e5 {[%clk 0:01:24.5]} 16. Bh2 {[%clk 0:02:25.2]} 16... Kh8 {[%clk
0:01:05]} 17. Bb5 {[%clk 0:02:23.5]} 17... Nxc3 {[%clk 0:01:00.6]} 18. Rxc3
{[%clk 0:02:23.2]} 18... e4 {[%clk 0:01:01.2]} 19. Nd2 {[%clk 0:02:16]} 19...
Be6 {[%clk 0:00:57.4]} 20. Nf1 {[%clk 0:02:10.1]} 20... f5 {[%clk 0:00:56.6]}
21. Bxc6 {[%clk 0:02:09.7]} 21... bxc6 {[%clk 0:00:56.2]} 22. f4 {[%clk
0:02:08.1]} 22... Bf6 {[%clk 0:00:53.5]} 23. Ne3 {[%clk 0:02:06.5]} 23... Qg7
{[%clk 0:00:53.5]} 24. g4 {[%clk 0:02:01.2]} 24... Bxd4 {[%clk 0:00:51.3]} 0-1

[Event "*** Titled Tuesday 3|2 Blitz"]
[Site "Chess.com"]
[Date "2015.10.06"]
[Round "5"]
[White "jcibarra"]
[Black "rikyshi"]
[Result "1-0"]
[WhiteElo "2490"]
[BlackElo "2135"]
[TimeControl "180+2"]
[EndTime "11:59:23 PDT"]
[Termination "jcibarra won by resignation"]

1. e4 {[%clk 0:03:01.9]} 1... e6 {[%clk 0:01:44.9]} 2. d4 {[%clk 0:03:00.7]}
2... d5 {[%clk 0:01:42.9]} 3. Nc3 {[%clk 0:03:00.8]} 3... Nc6 {[%clk 0:01:43.2]}
4. Nf3 {[%clk 0:03:01]} 4... Nf6 {[%clk 0:01:43.8]} 5. e5 {[%clk 0:03:02]} 5...
Ne4 {[%clk 0:01:44.4]} 6. Bd3 {[%clk 0:03:03.6]} 6... Bb4 {[%clk 0:01:45.1]} 7.
Bd2 {[%clk 0:03:05.1]} 7... Nxd2 {[%clk 0:01:46.4]} 8. Qxd2 {[%clk 0:03:07]}
8... f6 {[%clk 0:01:46.9]} 9. a3 {[%clk 0:03:07.3]} 9... Be7 {[%clk 0:01:47.5]}
10. O-O-O {[%clk 0:03:04.8]} 10... fxe5 {[%clk 0:01:46.2]} 11. dxe5 {[%clk
0:03:05.6]} 11... O-O {[%clk 0:01:46.4]} 12. h4 {[%clk 0:03:05.8]} 12... Rxf3
{[%clk 0:01:47.2]} 13. gxf3 {[%clk 0:03:06.7]} 13... Nxe5 {[%clk 0:01:47.5]} 14.
f4 {[%clk 0:03:07.6]} 14... Nf3 {[%clk 0:01:01.7]} 15. Bxh7+ {[%clk 0:03:03.1]}
15... Kxh7 {[%clk 0:01:01.4]} 16. Qd3+ {[%clk 0:03:04.2]} 16... Kg8 {[%clk
0:01:02]} 17. Qxf3 {[%clk 0:03:05]} 17... Bd6 {[%clk 0:01:00.2]} 18. f5 {[%clk
0:02:56.9]} 18... Qf6 {[%clk 0:00:59.1]} 19. Qh5 {[%clk 0:02:56.3]} 19... Bxa3
{[%clk 0:00:49.5]} 20. Qe8+ {[%clk 0:02:53.4]} 20... Kh7 {[%clk 0:00:50.2]} 21.
Qg6+ {[%clk 0:02:53.3]} 21... Qxg6 {[%clk 0:00:46.6]} 22. fxg6+ {[%clk
0:02:54.4]} 22... Kxg6 {[%clk 0:00:48.5]} 23. bxa3 {[%clk 0:02:55.9]} 23... c6
{[%clk 0:00:49.5]} 24. Rhg1+ {[%clk 0:02:54.4]} 24... Kh6 {[%clk 0:00:50.3]} 25.
Rg5 {[%clk 0:02:54.9]} 25... Bd7 {[%clk 0:00:51]} 26. Rdg1 {[%clk 0:02:55.3]}
26... Rg8 {[%clk 0:00:52.5]} 27. Ne2 {[%clk 0:02:54.3]} 27... Be8 {[%clk
0:00:49.9]} 28. Nf4 {[%clk 0:02:54.8]} 28... Bf7 {[%clk 0:00:48.9]} 29. Nxe6
{[%clk 0:02:55.8]} 29... Bxe6 {[%clk 0:00:49.5]} 30. Rg6+ {[%clk 0:02:57.2]}
30... Kh7 {[%clk 0:00:51.4]} 31. Rxe6 {[%clk 0:02:59.1]} 31... Rf8 {[%clk
0:00:53.3]} 32. Re7 {[%clk 0:02:59.9]} 32... Rxf2 {[%clk 0:00:50.2]} 33. Rgxg7+
{[%clk 0:03:00.1]} 33... Kh6 {[%clk 0:00:51.6]} 34. Rh7+ {[%clk 0:03:02]} 34...
Kg6 {[%clk 0:00:52.8]} 35. Reg7+ {[%clk 0:03:03.9]} 35... Kf6 {[%clk 0:00:54.5]}
36. Rf7+ {[%clk 0:03:05.5]} 1-0

[Event "*** Titled Tuesday 3|2 Blitz"]
[Site "Chess.com"]
[Date "2015.10.06"]
[Round "5"]
[White "tac49"]
[Black "zmaj23"]
[Result "1-0"]
[WhiteElo "2467"]
[BlackElo "2312"]
[TimeControl "180+2"]
[EndTime "11:59:40 PDT"]
[Termination "tac49 won by resignation"]

1. e4 {[%clk 0:01:46]} 1... c5 {[%clk 0:02:57.8]} 2. Nf3 {[%clk 0:01:46.5]} 2...
d6 {[%clk 0:02:58.6]} 3. d4 {[%clk 0:01:45.9]} 3... cxd4 {[%clk 0:03:00.5]} 4.
Qxd4 {[%clk 0:01:47.8]} 4... Nc6 {[%clk 0:03:00.6]} 5. Bb5 {[%clk 0:01:47.7]}
5... Bd7 {[%clk 0:03:02.5]} 6. Bxc6 {[%clk 0:01:49]} 6... Bxc6 {[%clk
0:03:04.4]} 7. Nc3 {[%clk 0:01:50.9]} 7... e5 {[%clk 0:03:02]} 8. Qd3 {[%clk
0:01:50.5]} 8... h6 {[%clk 0:03:03.5]} 9. O-O {[%clk 0:01:50.1]} 9... Nf6 {[%clk
0:03:02.8]} 10. Nd2 {[%clk 0:01:50.8]} 10... d5 {[%clk 0:03:02]} 11. exd5 {[%clk
0:01:45.2]} 11... Nxd5 {[%clk 0:03:03.9]} 12. Re1 {[%clk 0:01:42.5]} 12... f6
{[%clk 0:03:04]} 13. Qg6+ {[%clk 0:01:41.2]} 13... Ke7 {[%clk 0:02:55.2]} 14.
Nc4 {[%clk 0:01:30.6]} 14... Nxc3 {[%clk 0:02:50.5]} 15. bxc3 {[%clk 0:01:32.5]}
15... Qd5 {[%clk 0:02:51.8]} 16. Ba3+ {[%clk 0:01:27]} 16... Ke6 {[%clk
0:02:24]} 17. Rxe5+ {[%clk 0:01:25.8]} 17... Qxe5 {[%clk 0:02:25.1]} 18. Nxe5
{[%clk 0:01:26.8]} 18... Bxa3 {[%clk 0:02:21.9]} 19. Nxc6 {[%clk 0:01:12.7]}
19... bxc6 {[%clk 0:02:23.8]} 20. Re1+ {[%clk 0:01:12.1]} 20... Kd6 {[%clk
0:02:25]} 21. Qg3+ {[%clk 0:01:07.8]} 21... Kc5 {[%clk 0:02:23]} 22. Qe3+ {[%clk
0:00:59]} 22... Kb5 {[%clk 0:02:24.2]} 23. Rb1+ {[%clk 0:00:59.1]} 23... Ka5
{[%clk 0:02:18.9]} 24. c4 {[%clk 0:00:47.5]} 24... Bb4 {[%clk 0:02:14.2]} 25. a3
{[%clk 0:00:48.4]} 25... Bd6 {[%clk 0:02:07.2]} 26. Qd2+ {[%clk 0:00:48.7]} 1-0

[Event "*** Titled Tuesday 3|2 Blitz"]
[Site "Chess.com"]
[Date "2015.10.06"]
[Round "5"]
[White "facu57"]
[Black "armago"]
[Result "1/2-1/2"]
[WhiteElo "2481"]
[BlackElo "2059"]
[TimeControl "180+2"]
[EndTime "12:00:33 PDT"]
[Termination "Game drawn by stalemate"]

1. e4 {[%clk 0:03:01.8]} 1... c5 {[%clk 0:03:00.2]} 2. Nf3 {[%clk 0:03:01.9]}
2... d6 {[%clk 0:03:01.3]} 3. d4 {[%clk 0:03:03.3]} 3... cxd4 {[%clk 0:03:02.8]}
4. c3 {[%clk 0:03:05.2]} 4... dxc3 {[%clk 0:03:01.5]} 5. Nxc3 {[%clk 0:03:05.8]}
5... e6 {[%clk 0:03:03.1]} 6. Bc4 {[%clk 0:03:06.2]} 6... Nc6 {[%clk 0:03:03.6]}
7. O-O {[%clk 0:03:07]} 7... Be7 {[%clk 0:03:05]} 8. Qe2 {[%clk 0:03:07.7]} 8...
a6 {[%clk 0:03:06.4]} 9. Rd1 {[%clk 0:03:08.3]} 9... Bd7 {[%clk 0:03:07.9]} 10.
Bf4 {[%clk 0:03:07.4]} 10... e5 {[%clk 0:03:08.9]} 11. Be3 {[%clk 0:03:05.7]}
11... Nf6 {[%clk 0:03:09.9]} 12. Bg5 {[%clk 0:03:03.5]} 12... Bg4 {[%clk
0:03:01.9]} 13. Qe3 {[%clk 0:02:56.9]} 13... O-O {[%clk 0:02:51.3]} 14. h3
{[%clk 0:02:55.3]} 14... Bxf3 {[%clk 0:02:50.2]} 15. Qxf3 {[%clk 0:02:57.2]}
15... Nd4 {[%clk 0:02:51.3]} 16. Qd3 {[%clk 0:02:58.2]} 16... b5 {[%clk
0:02:45.5]} 17. Bxf6 {[%clk 0:02:53]} 17... bxc4 {[%clk 0:02:42.9]} 18. Bxe7
{[%clk 0:02:53.9]} 18... cxd3 {[%clk 0:02:20.4]} 19. Bxd8 {[%clk 0:02:52]} 19...
Raxd8 {[%clk 0:02:06.6]} 20. Rxd3 {[%clk 0:02:53.9]} 20... f5 {[%clk 0:02:07]}
21. Re1 {[%clk 0:02:44]} 21... fxe4 {[%clk 0:02:05.5]} 22. Rxe4 {[%clk
0:02:40.3]} 22... Rb8 {[%clk 0:02:03.5]} 23. b3 {[%clk 0:02:39.2]} 23... Rfc8
{[%clk 0:01:59.8]} 24. f4 {[%clk 0:02:38.5]} 24... Rc5 {[%clk 0:01:52.4]} 25.
fxe5 {[%clk 0:02:39.3]} 25... dxe5 {[%clk 0:01:52.1]} 26. Ne2 {[%clk 0:02:39.8]}
26... Rd8 {[%clk 0:01:42.9]} 27. Nxd4 {[%clk 0:02:37.9]} 27... exd4 {[%clk
0:01:42.6]} 28. Rexd4 {[%clk 0:02:38]} 28... Rc1+ {[%clk 0:01:41.9]} 29. Kh2
{[%clk 0:02:38.7]} 29... Rxd4 {[%clk 0:01:41.1]} 30. Rxd4 {[%clk 0:02:39.2]}
30... Rc6 {[%clk 0:01:40.2]} 31. Ra4 {[%clk 0:02:39.9]} 31... Kf7 {[%clk
0:01:40.6]} 32. h4 {[%clk 0:02:41.4]} 32... Ke7 {[%clk 0:01:41.2]} 33. Kg3
{[%clk 0:02:42.8]} 33... Kd7 {[%clk 0:01:41.2]} 34. Kf4 {[%clk 0:02:44.4]} 34...
Rf6+ {[%clk 0:01:39.3]} 35. Ke3 {[%clk 0:02:42.3]} 35... Kc7 {[%clk 0:01:40.5]}
36. g4 {[%clk 0:02:42.9]} 36... Kb6 {[%clk 0:01:41.3]} 37. Rf4 {[%clk
0:02:43.7]} 37... Rc6 {[%clk 0:01:40.3]} 38. Rf7 {[%clk 0:02:42.7]} 38... Rg6
{[%clk 0:01:41.1]} 39. g5 {[%clk 0:02:43]} 39... h6 {[%clk 0:01:42]} 40. Kf4
{[%clk 0:02:43.8]} 40... Kb5 {[%clk 0:01:41]} 41. Kf5 {[%clk 0:02:41.7]} 41...
Rc6 {[%clk 0:01:42]} 42. Rxg7 {[%clk 0:02:42.2]} 42... hxg5 {[%clk 0:01:41.5]}
43. hxg5 {[%clk 0:02:44.1]} 43... Rc2 {[%clk 0:01:41.2]} 44. a4+ {[%clk
0:02:43.6]} 44... Kb4 {[%clk 0:01:38.6]} 45. Rb7+ {[%clk 0:02:44]} 45... Ka5
{[%clk 0:01:39.8]} 46. g6 {[%clk 0:02:44]} 46... Rf2+ {[%clk 0:01:39.1]} 47. Ke5
{[%clk 0:02:45.3]} 47... Rf5+ {[%clk 0:01:39.6]} 48. Kd4 {[%clk 0:02:46.6]}
48... Rd5+ {[%clk 0:01:39.9]} 49. Kc3 {[%clk 0:02:43.9]} 49... Rd3+ {[%clk
0:01:40.8]} 50. Kc2 {[%clk 0:02:44.5]} 50... Rd2+ {[%clk 0:01:42]} 51. Kb1
{[%clk 0:02:44.5]} 51... Rb2+ {[%clk 0:01:41.6]} 52. Kc1 {[%clk 0:02:45.8]}
52... Rc2+ {[%clk 0:01:41.6]} 53. Kd1 {[%clk 0:02:46.5]} 53... Rd2+ {[%clk
0:01:42.2]} 54. Ke1 {[%clk 0:02:47.9]} 54... Re2+ {[%clk 0:01:42.9]} 55. Kd1
{[%clk 0:02:49.6]} 55... Rd2+ {[%clk 0:01:43.8]} 56. Kc1 {[%clk 0:02:50.9]}
56... Rc2+ {[%clk 0:01:45]} 57. Kxc2 {[%clk 0:02:49.5]} 1/2-1/2

[Event "*** Titled Tuesday 3|2 Blitz"]
[Site "Chess.com"]
[Date "2015.10.06"]
[Round "5"]
[White "alexsuper1987"]
[Black "Badouuu"]
[Result "0-1"]
[WhiteElo "2190"]
[BlackElo "1959"]
[TimeControl "180+2"]
[EndTime "12:01:00 PDT"]
[Termination "Badouuu won by resignation"]

1. e4 {[%clk 0:03:01.9]} 1... c5 {[%clk 0:03:00.7]} 2. Nf3 {[%clk 0:03:02.6]}
2... Nc6 {[%clk 0:03:01.3]} 3. d4 {[%clk 0:03:04.2]} 3... cxd4 {[%clk
0:03:03.2]} 4. Nxd4 {[%clk 0:03:06.1]} 4... e5 {[%clk 0:03:04.9]} 5. Nb5 {[%clk
0:03:06.5]} 5... d6 {[%clk 0:03:06.1]} 6. c4 {[%clk 0:03:07.4]} 6... Be7 {[%clk
0:03:06.6]} 7. N1c3 {[%clk 0:03:06.3]} 7... a6 {[%clk 0:03:08]} 8. Na3 {[%clk
0:03:07.6]} 8... f5 {[%clk 0:03:09.6]} 9. Be2 {[%clk 0:03:06.1]} 9... f4 {[%clk
0:03:10.3]} 10. O-O {[%clk 0:03:06.3]} 10... Nf6 {[%clk 0:03:11.8]} 11. Nc2
{[%clk 0:03:00.8]} 11... O-O {[%clk 0:03:13.1]} 12. b3 {[%clk 0:02:59.2]} 12...
g5 {[%clk 0:03:09.5]} 13. f3 {[%clk 0:02:56]} 13... Be6 {[%clk 0:03:08.9]} 14.
Ba3 {[%clk 0:02:56.6]} 14... Qd7 {[%clk 0:03:04.8]} 15. Nd5 {[%clk 0:02:51.9]}
15... Bxd5 {[%clk 0:03:05.3]} 16. cxd5 {[%clk 0:02:53]} 16... Nd8 {[%clk
0:03:03.6]} 17. Rc1 {[%clk 0:02:49.6]} 17... Nf7 {[%clk 0:03:05.1]} 18. b4
{[%clk 0:02:36.3]} 18... Bd8 {[%clk 0:03:04.7]} 19. Kh1 {[%clk 0:02:27.9]} 19...
Bb6 {[%clk 0:03:05.2]} 20. Ne1 {[%clk 0:02:24.5]} 20... h5 {[%clk 0:03:05]} 21.
h3 {[%clk 0:02:21.9]} 21... Kg7 {[%clk 0:03:03.9]} 22. Nd3 {[%clk 0:02:20.6]}
22... Rh8 {[%clk 0:03:03.3]} 23. Bb2 {[%clk 0:02:21.4]} 23... g4 {[%clk
0:02:57.8]} 24. fxg4 {[%clk 0:02:22.1]} 24... hxg4 {[%clk 0:02:58.9]} 25. Nxf4
{[%clk 0:02:20.8]} 25... exf4 {[%clk 0:02:52.9]} 26. Rxf4 {[%clk 0:02:20.9]}
26... Ne5 {[%clk 0:02:54]} 27. Qf1 {[%clk 0:02:14.1]} 27... gxh3 {[%clk
0:02:48]} 28. g3 {[%clk 0:02:05.8]} 28... Rh6 {[%clk 0:02:29.1]} 29. Rf5 {[%clk
0:01:48.2]} 29... Nxe4 {[%clk 0:02:24.4]} 30. Kh2 {[%clk 0:01:40.1]} 30... Rg6
{[%clk 0:02:18]} 31. Bd3 {[%clk 0:00:30.4]} 31... Nxg3 {[%clk 0:02:08.1]} 32.
Rxe5 {[%clk 0:00:24.5]} 32... Nxf1+ {[%clk 0:01:56.6]} 33. Rxf1 {[%clk
0:00:26.4]} 33... Rg2+ {[%clk 0:01:56]} 34. Kh1 {[%clk 0:00:26.3]} 34... dxe5
{[%clk 0:01:53.2]} 35. Bxe5+ {[%clk 0:00:26.2]} 35... Kg8 {[%clk 0:01:54.8]} 36.
Bf5 {[%clk 0:00:25.1]} 36... Qxd5 {[%clk 0:01:52.1]} 0-1